[Event "Early-Titled-Tuesday-Blitz-February-06-2024"]
[Site "Chess.com"]
[Date "2024.02.06"]
[Round "1"]
[White "Djager97"]
[Black "Sajith_Peiris"]
[Result "1-0"]
[WhiteElo "2593"]
[BlackElo "2240"]
[TimeControl "180+1"]
[EndTime "8:07:36 PST"]
[Termination "Djager97 won on time"]

1. e4 {[%clk 0:03:00.9]} 1... c6 {[%clk 0:02:58.5]} 2. d4 {[%clk 0:03:00.3]}
2... d5 {[%clk 0:02:57.6]} 3. exd5 {[%clk 0:03:00.6]} 3... cxd5 {[%clk
0:02:56.8]} 4. Bd3 {[%clk 0:03:00.9]} 4... Nf6 {[%clk 0:02:55.3]} 5. h3 {[%clk
0:02:59.8]} 5... Nc6 {[%clk 0:02:53]} 6. c3 {[%clk 0:03:00.2]} 6... e6 {[%clk
0:02:41.1]} 7. Nf3 {[%clk 0:02:58.7]} 7... Bd6 {[%clk 0:02:39.3]} 8. O-O {[%clk
0:02:59.1]} 8... h6 {[%clk 0:02:37.1]} 9. Re1 {[%clk 0:02:59.1]} 9... O-O {[%clk
0:02:36.1]} 10. Nbd2 {[%clk 0:02:50.7]} 10... b6 {[%clk 0:02:32.3]} 11. Ne5
{[%clk 0:02:49.2]} 11... Bb7 {[%clk 0:02:29.3]} 12. Ndf3 {[%clk 0:02:46.2]}
12... Ne7 {[%clk 0:02:21.5]} 13. Bf4 {[%clk 0:02:42.3]} 13... Rc8 {[%clk
0:01:58.6]} 14. Qd2 {[%clk 0:02:41.7]} 14... Ne4 {[%clk 0:01:54.4]} 15. Qe3
{[%clk 0:02:33.8]} 15... Nf5 {[%clk 0:01:44.4]} 16. Qe2 {[%clk 0:02:31]} 16...
Re8 {[%clk 0:01:02.1]} 17. Bxe4 {[%clk 0:02:28.7]} 17... dxe4 {[%clk 0:01:01.6]}
18. Nd2 {[%clk 0:02:29.6]} 18... f6 {[%clk 0:00:58.7]} 19. Ng6 {[%clk 0:02:29]}
19... Bxf4 {[%clk 0:00:56.7]} 20. Nxf4 {[%clk 0:02:29.9]} 20... e5 {[%clk
0:00:52.6]} 21. Qg4 {[%clk 0:02:17.2]} 21... exf4 {[%clk 0:00:36.4]} 22. Qxf5
{[%clk 0:02:16.9]} 22... e3 {[%clk 0:00:36.5]} 23. fxe3 {[%clk 0:02:05]} 23...
fxe3 {[%clk 0:00:34.9]} 24. Nf3 {[%clk 0:02:05.5]} 24... Qd5 {[%clk 0:00:27.6]}
25. Qd3 {[%clk 0:01:41.6]} 25... Re7 {[%clk 0:00:25.5]} 26. Rxe3 {[%clk
0:01:39.7]} 26... Rce8 {[%clk 0:00:20.3]} 27. Rxe7 {[%clk 0:01:12.8]} 27... Rxe7
{[%clk 0:00:21.2]} 28. b3 {[%clk 0:01:13.1]} 28... Qh5 {[%clk 0:00:18.6]} 29.
Re1 {[%clk 0:01:03.8]} 29... Rxe1+ {[%clk 0:00:14.9]} 30. Nxe1 {[%clk
0:01:04.7]} 30... Qh4 {[%clk 0:00:14.5]} 31. Qe3 {[%clk 0:00:58.3]} 31... Kh7
{[%clk 0:00:10.6]} 32. c4 {[%clk 0:00:58.1]} 32... Qh5 {[%clk 0:00:09.4]} 33. d5
{[%clk 0:00:56.5]} 33... Qd1 {[%clk 0:00:07.8]} 34. Qd3+ {[%clk 0:00:43.7]}
34... Qxd3 {[%clk 0:00:07.3]} 35. Nxd3 {[%clk 0:00:44.6]} 35... Kg6 {[%clk
0:00:07.5]} 36. Kf2 {[%clk 0:00:37.9]} 36... Kf5 {[%clk 0:00:07.4]} 37. Ke3
{[%clk 0:00:38]} 37... h5 {[%clk 0:00:05.7]} 38. Kd4 {[%clk 0:00:33.1]} 38... g5
{[%clk 0:00:05.6]} 39. b4 {[%clk 0:00:33.2]} 39... Bc8 {[%clk 0:00:05.3]} 40. c5
{[%clk 0:00:33.4]} 40... bxc5+ {[%clk 0:00:04.9]} 41. bxc5 {[%clk 0:00:34.3]}
41... g4 {[%clk 0:00:04.8]} 42. c6 {[%clk 0:00:29.6]} 42... gxh3 {[%clk
0:00:04.4]} 43. gxh3 {[%clk 0:00:30.5]} 43... Kg5 {[%clk 0:00:03.5]} 44. d6
{[%clk 0:00:29.6]} 1-0

[Event "Early-Titled-Tuesday-Blitz-February-06-2024"]
[Site "Chess.com"]
[Date "2024.02.06"]
[Round "1"]
[White "yobdc"]
[Black "roxannyzoldyck"]
[Result "1-0"]
[WhiteElo "2586"]
[BlackElo "2206"]
[TimeControl "180+1"]
[EndTime "8:07:36 PST"]
[Termination "yobdc won by resignation"]

1. c4 {[%clk 0:03:00.9]} 1... Nf6 {[%clk 0:02:58.9]} 2. Nc3 {[%clk 0:03:00.6]}
2... g6 {[%clk 0:02:59]} 3. e4 {[%clk 0:03:01.1]} 3... d6 {[%clk 0:02:59]} 4. d4
{[%clk 0:03:01.4]} 4... Bg7 {[%clk 0:02:59.4]} 5. f3 {[%clk 0:03:02.1]} 5... c5
{[%clk 0:02:52.4]} 6. Nge2 {[%clk 0:02:57.5]} 6... cxd4 {[%clk 0:02:47.5]} 7.
Nxd4 {[%clk 0:02:57.2]} 7... O-O {[%clk 0:02:48.1]} 8. Be2 {[%clk 0:02:56.8]}
8... Nc6 {[%clk 0:02:48.3]} 9. Be3 {[%clk 0:02:57.3]} 9... Nd7 {[%clk
0:02:26.9]} 10. Nc2 {[%clk 0:02:55.8]} 10... a6 {[%clk 0:02:21.2]} 11. Qd2
{[%clk 0:02:50.6]} 11... Nc5 {[%clk 0:02:08.1]} 12. Rb1 {[%clk 0:02:36.5]} 12...
e5 {[%clk 0:02:00.9]} 13. O-O {[%clk 0:02:23.5]} 13... Ne6 {[%clk 0:01:21.8]}
14. Rfd1 {[%clk 0:02:22.8]} 14... Ned4 {[%clk 0:01:21.4]} 15. Bf1 {[%clk
0:02:22]} 15... f5 {[%clk 0:01:19.3]} 16. exf5 {[%clk 0:01:46.5]} 16... gxf5
{[%clk 0:01:19.2]} 17. Ne2 {[%clk 0:01:31.4]} 17... Nxc2 {[%clk 0:01:08.8]} 18.
Qxc2 {[%clk 0:01:31.7]} 18... Qe7 {[%clk 0:01:07.5]} 19. Qd2 {[%clk 0:01:25.5]}
19... Be6 {[%clk 0:01:02.8]} 20. Nc3 {[%clk 0:01:25.1]} 20... Nd4 {[%clk
0:00:57.2]} 21. Re1 {[%clk 0:01:16.9]} 21... Qf7 {[%clk 0:00:53.9]} 22. b3
{[%clk 0:01:11.6]} 22... Rad8 {[%clk 0:00:52.4]} 23. Kh1 {[%clk 0:01:10.4]}
23... Nc6 {[%clk 0:00:44.3]} 24. Bb6 {[%clk 0:01:04.7]} 24... Rd7 {[%clk
0:00:43.3]} 25. Rbd1 {[%clk 0:01:01.7]} 25... Qg6 {[%clk 0:00:33.8]} 26. Nd5
{[%clk 0:00:55.6]} 26... Bh6 {[%clk 0:00:32.2]} 27. Be3 {[%clk 0:00:55.1]} 27...
f4 {[%clk 0:00:32]} 28. Bg1 {[%clk 0:00:47.1]} 28... Kh8 {[%clk 0:00:32.1]} 29.
Bd3 {[%clk 0:00:44.9]} 29... Bf5 {[%clk 0:00:31.5]} 30. Bxf5 {[%clk 0:00:44.6]}
30... Rxf5 {[%clk 0:00:32]} 31. Re2 {[%clk 0:00:24.3]} 31... Bf8 {[%clk
0:00:31.9]} 32. Nc3 {[%clk 0:00:19.8]} 32... Ne7 {[%clk 0:00:25.4]} 33. Ne4
{[%clk 0:00:19.8]} 33... d5 {[%clk 0:00:25.3]} 34. cxd5 {[%clk 0:00:19.7]} 34...
Rxd5 {[%clk 0:00:22.9]} 35. Qe1 {[%clk 0:00:19.9]} 35... Rxd1 {[%clk 0:00:16]}
36. Qxd1 {[%clk 0:00:20.8]} 36... Nc6 {[%clk 0:00:16]} 37. Qd7 {[%clk
0:00:19.3]} 37... Qf7 {[%clk 0:00:15.3]} 38. Rd2 {[%clk 0:00:18.2]} 38... Kg7
{[%clk 0:00:14.3]} 39. Qc8 {[%clk 0:00:16.2]} 39... Ne7 {[%clk 0:00:13.1]} 40.
Qxb7 {[%clk 0:00:16.4]} 40... Ng6 {[%clk 0:00:13.3]} 41. Rd7 {[%clk 0:00:15.9]}
41... Be7 {[%clk 0:00:13.1]} 42. Nd6 {[%clk 0:00:16.1]} 42... Qe6 {[%clk
0:00:11.3]} 43. Nxf5+ {[%clk 0:00:15.6]} 43... Qxf5 {[%clk 0:00:12.2]} 44. Rxe7+
{[%clk 0:00:15.9]} 44... Nxe7 {[%clk 0:00:12.2]} 45. Qxe7+ {[%clk 0:00:16.8]}
1-0

[Event "Early-Titled-Tuesday-Blitz-February-06-2024"]
[Site "Chess.com"]
[Date "2024.02.06"]
[Round "1"]
[White "blitzking1729"]
[Black "Barath1308"]
[Result "1-0"]
[WhiteElo "2736"]
[BlackElo "2407"]
[TimeControl "180+1"]
[EndTime "8:07:38 PST"]
[Termination "blitzking1729 won by resignation"]

1. c4 {[%clk 0:03:00.9]} 1... Nf6 {[%clk 0:02:52.3]} 2. Nc3 {[%clk 0:03:00.5]}
2... c5 {[%clk 0:02:50.8]} 3. Nf3 {[%clk 0:03:00.3]} 3... Nc6 {[%clk 0:02:50.5]}
4. e3 {[%clk 0:02:59.6]} 4... g6 {[%clk 0:02:45.4]} 5. d4 {[%clk 0:02:59.3]}
5... cxd4 {[%clk 0:02:40.4]} 6. exd4 {[%clk 0:03:00.2]} 6... d5 {[%clk
0:02:40.4]} 7. cxd5 {[%clk 0:02:59.9]} 7... Nxd5 {[%clk 0:02:40.5]} 8. Qb3
{[%clk 0:02:59.4]} 8... Nxc3 {[%clk 0:02:29.4]} 9. Bc4 {[%clk 0:02:56.9]} 9...
e6 {[%clk 0:02:11.9]} 10. bxc3 {[%clk 0:02:48.9]} 10... Na5 {[%clk 0:02:11.8]}
11. Bb5+ {[%clk 0:02:43.4]} 11... Bd7 {[%clk 0:02:11.1]} 12. Qb2 {[%clk
0:02:17.8]} 12... Be7 {[%clk 0:02:01.4]} 13. Ne5 {[%clk 0:01:54.5]} 13... Nc6
{[%clk 0:02:00.2]} 14. Nxd7 {[%clk 0:01:52]} 14... Qxd7 {[%clk 0:01:59.7]} 15.
Bh6 {[%clk 0:01:52.7]} 15... a6 {[%clk 0:01:56]} 16. Be2 {[%clk 0:01:52]} 16...
Rc8 {[%clk 0:01:50.7]} 17. O-O {[%clk 0:01:48]} 17... Na5 {[%clk 0:01:49.8]} 18.
c4 {[%clk 0:01:21]} 18... Bf6 {[%clk 0:01:46.7]} 19. Rac1 {[%clk 0:00:46.8]}
19... Nc6 {[%clk 0:01:38.3]} 20. Rfd1 {[%clk 0:00:32.7]} 20... Nxd4 {[%clk
0:01:34.9]} 21. Kh1 {[%clk 0:00:29]} 21... Rd8 {[%clk 0:01:17.7]} 22. Bf1 {[%clk
0:00:28.8]} 22... Qe7 {[%clk 0:01:11.5]} 23. Qb6 {[%clk 0:00:12.3]} 23... Rd6
{[%clk 0:00:53.2]} 24. Qa7 {[%clk 0:00:08.7]} 24... b5 {[%clk 0:00:19.6]} 25.
Qxe7+ {[%clk 0:00:04.9]} 25... Kxe7 {[%clk 0:00:19.4]} 26. cxb5 {[%clk
0:00:05.1]} 26... axb5 {[%clk 0:00:18.9]} 27. Be3 {[%clk 0:00:05.7]} 27... Rb8
{[%clk 0:00:17.3]} 28. Rc7+ {[%clk 0:00:04.5]} 28... Ke8 {[%clk 0:00:15.1]} 29.
Bf4 {[%clk 0:00:04]} 29... e5 {[%clk 0:00:14.9]} 30. Be3 {[%clk 0:00:04]} 30...
b4 {[%clk 0:00:14.1]} 31. Rc5 {[%clk 0:00:04.1]} 31... Kd7 {[%clk 0:00:12.5]}
32. Rdc1 {[%clk 0:00:04.4]} 32... Rc6 {[%clk 0:00:12.2]} 33. Bxd4 {[%clk
0:00:03.9]} 33... Rxc5 {[%clk 0:00:11.1]} 34. Bxc5 {[%clk 0:00:04.8]} 34... Rc8
{[%clk 0:00:11.5]} 35. Rd1+ {[%clk 0:00:05.1]} 35... Ke8 {[%clk 0:00:10.3]} 36.
Bb5+ {[%clk 0:00:04.4]} 1-0

[Event "Early-Titled-Tuesday-Blitz-February-06-2024"]
[Site "Chess.com"]
[Date "2024.02.06"]
[Round "1"]
[White "Nechitaylo_Nikita"]
[Black "ozates"]
[Result "0-1"]
[WhiteElo "2305"]
[BlackElo "2631"]
[TimeControl "180+1"]
[EndTime "8:07:40 PST"]
[Termination "ozates won by checkmate"]

1. d4 {[%clk 0:03:00.9]} 1... Nf6 {[%clk 0:02:59.6]} 2. c4 {[%clk 0:03:01.3]}
2... e6 {[%clk 0:02:58.9]} 3. Nc3 {[%clk 0:03:01.2]} 3... Bb4 {[%clk 0:02:59.5]}
4. e3 {[%clk 0:03:01.1]} 4... O-O {[%clk 0:02:59.3]} 5. Ne2 {[%clk 0:03:01]}
5... c6 {[%clk 0:02:58.9]} 6. a3 {[%clk 0:03:00]} 6... Ba5 {[%clk 0:02:59]} 7.
b4 {[%clk 0:02:57.8]} 7... Bc7 {[%clk 0:02:58.8]} 8. Ng3 {[%clk 0:02:56.1]} 8...
d6 {[%clk 0:02:59.1]} 9. Bd3 {[%clk 0:02:56.1]} 9... e5 {[%clk 0:02:59.1]} 10.
O-O {[%clk 0:02:55.6]} 10... Nbd7 {[%clk 0:02:59]} 11. d5 {[%clk 0:02:49]} 11...
Re8 {[%clk 0:02:57.9]} 12. Bb2 {[%clk 0:02:47.2]} 12... cxd5 {[%clk 0:02:57.8]}
13. cxd5 {[%clk 0:02:46.8]} 13... Nf8 {[%clk 0:02:49.6]} 14. Qc2 {[%clk
0:02:31.8]} 14... a6 {[%clk 0:02:46.7]} 15. f4 {[%clk 0:01:48.6]} 15... Bb6
{[%clk 0:02:44.6]} 16. fxe5 {[%clk 0:01:37.7]} 16... Bxe3+ {[%clk 0:02:35.5]}
17. Kh1 {[%clk 0:01:38.3]} 17... Ng4 {[%clk 0:02:36.4]} 18. Nf5 {[%clk
0:00:41.6]} 18... Rxe5 {[%clk 0:02:13.2]} 19. Nd1 {[%clk 0:00:15.6]} 19... Bxf5
{[%clk 0:01:35.4]} 20. Bxf5 {[%clk 0:00:16]} 20... Nxh2 {[%clk 0:01:24.9]} 21.
Bxe5 {[%clk 0:00:12.1]} 21... Nxf1 {[%clk 0:01:22.2]} 22. Bh2 {[%clk 0:00:01.5]}
22... Qh4 {[%clk 0:00:59.9]} 23. g3 {[%clk 0:00:02]} 23... Nxg3+ {[%clk
0:00:55.6]} 24. Kg2 {[%clk 0:00:02.5]} 24... Nxf5 {[%clk 0:00:51.6]} 25. Qxf5
{[%clk 0:00:03.4]} 25... Bd4 {[%clk 0:00:45.1]} 26. Bg3 {[%clk 0:00:01.6]} 26...
Qf6 {[%clk 0:00:41.9]} 27. Qxf6 {[%clk 0:00:01.8]} 27... Bxf6 {[%clk 0:00:42.8]}
28. Rc1 {[%clk 0:00:02]} 28... Rd8 {[%clk 0:00:34.4]} 29. Rc7 {[%clk 0:00:01.4]}
29... Rd7 {[%clk 0:00:34.7]} 30. Rc8 {[%clk 0:00:01.2]} 30... h5 {[%clk
0:00:33.2]} 31. Ne3 {[%clk 0:00:01]} 31... g6 {[%clk 0:00:33]} 32. Nc4 {[%clk
0:00:01.1]} 32... Be7 {[%clk 0:00:32.8]} 33. Nb6 {[%clk 0:00:01.4]} 33... Rd8
{[%clk 0:00:33.2]} 34. Rc7 {[%clk 0:00:01.2]} 34... Bf6 {[%clk 0:00:31.5]} 35.
Rxb7 {[%clk 0:00:01.9]} 35... h4 {[%clk 0:00:31.9]} 36. Bh2 {[%clk 0:00:01.5]}
36... g5 {[%clk 0:00:31.3]} 37. Nc4 {[%clk 0:00:02]} 37... Rc8 {[%clk
0:00:27.6]} 38. Nxd6 {[%clk 0:00:01.4]} 38... Rc2+ {[%clk 0:00:28.3]} 39. Kh3
{[%clk 0:00:01.4]} 39... g4+ {[%clk 0:00:28.3]} 40. Kxg4 {[%clk 0:00:02]} 40...
Rxh2 {[%clk 0:00:28.4]} 41. Nxf7 {[%clk 0:00:02.4]} 41... Rg2+ {[%clk
0:00:22.5]} 42. Kh5 {[%clk 0:00:02.2]} 42... Bg7 {[%clk 0:00:13.6]} 43. d6
{[%clk 0:00:02.9]} 43... h3 {[%clk 0:00:13]} 44. d7 {[%clk 0:00:02.1]} 44... h2
{[%clk 0:00:13]} 45. Rc7 {[%clk 0:00:02.5]} 45... h1=Q# {[%clk 0:00:13.3]} 0-1

[Event "Early-Titled-Tuesday-Blitz-February-06-2024"]
[Site "Chess.com"]
[Date "2024.02.06"]
[Round "1"]
[White "MaxLeto"]
[Black "Vaathi_Coming"]
[Result "0-1"]
[WhiteElo "2501"]
[BlackElo "2947"]
[TimeControl "180+1"]
[EndTime "8:07:42 PST"]
[Termination "Vaathi_Coming won by checkmate"]

1. g4 {[%clk 0:03:00.9]} 1... d5 {[%clk 0:02:58.2]} 2. Bg2 {[%clk 0:03:01.4]}
2... c6 {[%clk 0:02:58.2]} 3. h3 {[%clk 0:02:59.7]} 3... e5 {[%clk 0:02:58.5]}
4. d4 {[%clk 0:03:00.2]} 4... e4 {[%clk 0:02:57.6]} 5. c4 {[%clk 0:03:00.5]}
5... h5 {[%clk 0:02:55.6]} 6. g5 {[%clk 0:02:59.7]} 6... Bd6 {[%clk 0:02:51.9]}
7. Nc3 {[%clk 0:02:59.4]} 7... Ne7 {[%clk 0:02:52]} 8. Qb3 {[%clk 0:02:58.1]}
8... O-O {[%clk 0:02:50.4]} 9. Bd2 {[%clk 0:02:53.8]} 9... Bc7 {[%clk 0:02:38]}
10. Rc1 {[%clk 0:02:51.1]} 10... Bb6 {[%clk 0:02:37.1]} 11. e3 {[%clk
0:02:41.7]} 11... h4 {[%clk 0:02:24.6]} 12. Nge2 {[%clk 0:02:37.9]} 12... Na6
{[%clk 0:02:07.4]} 13. Nf4 {[%clk 0:02:35.1]} 13... Nc7 {[%clk 0:02:07.7]} 14.
c5 {[%clk 0:02:32.1]} 14... Ba5 {[%clk 0:02:07.3]} 15. Nxe4 {[%clk 0:02:32.8]}
15... Bxd2+ {[%clk 0:02:05]} 16. Nxd2 {[%clk 0:02:33.7]} 16... Nf5 {[%clk
0:02:03.8]} 17. Nf3 {[%clk 0:01:54.1]} 17... Re8 {[%clk 0:02:03.9]} 18. Kd2
{[%clk 0:01:52.9]} 18... Ne6 {[%clk 0:01:48.7]} 19. Nxe6 {[%clk 0:01:38.5]}
19... Bxe6 {[%clk 0:01:49.6]} 20. Rhg1 {[%clk 0:01:33]} 20... Rb8 {[%clk
0:01:38.9]} 21. Ne5 {[%clk 0:01:26]} 21... Ne7 {[%clk 0:00:55.4]} 22. Qa3 {[%clk
0:01:14.6]} 22... b6 {[%clk 0:00:54.7]} 23. f4 {[%clk 0:00:38.2]} 23... Qc8
{[%clk 0:00:50.2]} 24. Rh1 {[%clk 0:00:32.9]} 24... Nf5 {[%clk 0:00:46.9]} 25.
b3 {[%clk 0:00:25.1]} 25... Ng3 {[%clk 0:00:45.7]} 26. Rh2 {[%clk 0:00:24.5]}
26... f6 {[%clk 0:00:35.7]} 27. gxf6 {[%clk 0:00:21]} 27... gxf6 {[%clk
0:00:36.6]} 28. Ng6 {[%clk 0:00:15.1]} 28... bxc5 {[%clk 0:00:29.3]} 29. Qxc5
{[%clk 0:00:12.7]} 29... Qa6 {[%clk 0:00:27.8]} 30. Rc2 {[%clk 0:00:08.3]} 30...
Bf5 {[%clk 0:00:13.5]} 31. Ne7+ {[%clk 0:00:04.4]} 31... Rxe7 {[%clk 0:00:13.7]}
32. e4 {[%clk 0:00:04.1]} 32... Rxe4 {[%clk 0:00:11.6]} 33. Bxe4 {[%clk
0:00:03.8]} 33... Nxe4+ {[%clk 0:00:12.5]} 34. Kc1 {[%clk 0:00:03.6]} 34... Nxc5
{[%clk 0:00:13.4]} 35. dxc5 {[%clk 0:00:03.1]} 35... Bxc2 {[%clk 0:00:12.1]} 36.
Rxc2 {[%clk 0:00:03.3]} 36... Re8 {[%clk 0:00:11.5]} 37. Kd1 {[%clk 0:00:02.8]}
37... Qf1+ {[%clk 0:00:10.7]} 38. Kd2 {[%clk 0:00:02.7]} 38... Qe1+ {[%clk
0:00:11.6]} 39. Kd3 {[%clk 0:00:03.6]} 39... Qe3# {[%clk 0:00:12.3]} 0-1

[Event "Early-Titled-Tuesday-Blitz-February-06-2024"]
[Site "Chess.com"]
[Date "2024.02.06"]
[Round "1"]
[White "GianmarcoVaR"]
[Black "Bkmzzzzz"]
[Result "1-0"]
[WhiteElo "2674"]
[BlackElo "2366"]
[TimeControl "180+1"]
[EndTime "8:07:45 PST"]
[Termination "GianmarcoVaR won by checkmate"]

1. e4 {[%clk 0:02:57.6]} 1... d6 {[%clk 0:02:57.5]} 2. d4 {[%clk 0:02:56.9]}
2... Nf6 {[%clk 0:02:58.1]} 3. Nc3 {[%clk 0:02:55.3]} 3... e5 {[%clk 0:02:58.7]}
4. Nf3 {[%clk 0:02:55.5]} 4... Nbd7 {[%clk 0:02:58]} 5. Bc4 {[%clk 0:02:54.6]}
5... Be7 {[%clk 0:02:58.5]} 6. O-O {[%clk 0:02:54.2]} 6... O-O {[%clk
0:02:59.1]} 7. Re1 {[%clk 0:02:53.2]} 7... c6 {[%clk 0:02:59.6]} 8. a4 {[%clk
0:02:52.9]} 8... b6 {[%clk 0:02:59.7]} 9. h3 {[%clk 0:02:50.9]} 9... a6 {[%clk
0:02:59.1]} 10. Be3 {[%clk 0:02:50.1]} 10... Bb7 {[%clk 0:02:51.9]} 11. d5
{[%clk 0:02:39.1]} 11... cxd5 {[%clk 0:02:41.3]} 12. Bxd5 {[%clk 0:02:24.1]}
12... Nxd5 {[%clk 0:02:23.9]} 13. Nxd5 {[%clk 0:02:23.6]} 13... Nf6 {[%clk
0:01:58.4]} 14. Bxb6 {[%clk 0:02:22.5]} 14... Qd7 {[%clk 0:01:56.1]} 15. c4
{[%clk 0:02:21.6]} 15... Rac8 {[%clk 0:01:54.3]} 16. b3 {[%clk 0:02:15.8]} 16...
Nxd5 {[%clk 0:01:46.1]} 17. cxd5 {[%clk 0:02:08.4]} 17... f5 {[%clk 0:01:43.9]}
18. Nd2 {[%clk 0:02:02.9]} 18... Bg5 {[%clk 0:01:36.4]} 19. Nc4 {[%clk
0:02:01.5]} 19... Rf6 {[%clk 0:01:26.1]} 20. Be3 {[%clk 0:01:51.6]} 20... f4
{[%clk 0:01:24.2]} 21. Bd2 {[%clk 0:01:40.3]} 21... Rg6 {[%clk 0:01:17.3]} 22.
Qf3 {[%clk 0:01:28.9]} 22... Rf8 {[%clk 0:01:12.7]} 23. Rac1 {[%clk 0:01:26.9]}
23... Bh4 {[%clk 0:01:11.7]} 24. Rc2 {[%clk 0:01:17.2]} 24... Bc8 {[%clk
0:01:12]} 25. Kf1 {[%clk 0:01:13.8]} 25... Qa7 {[%clk 0:01:01.5]} 26. Bb4 {[%clk
0:01:09.1]} 26... Be7 {[%clk 0:00:52]} 27. Rec1 {[%clk 0:01:07.7]} 27... Qb7
{[%clk 0:00:44.1]} 28. Ba3 {[%clk 0:01:04.1]} 28... Rg3 {[%clk 0:00:43.7]} 29.
fxg3 {[%clk 0:00:37.8]} 29... fxg3 {[%clk 0:00:44.6]} 30. Qxf8+ {[%clk
0:00:36.8]} 30... Bxf8 {[%clk 0:00:33.8]} 31. Nxd6 {[%clk 0:00:34.6]} 31... Qxb3
{[%clk 0:00:34.3]} 32. Rxc8 {[%clk 0:00:17.2]} 32... Qxa3 {[%clk 0:00:33.4]} 33.
Nf5 {[%clk 0:00:16.6]} 33... g6 {[%clk 0:00:31]} 34. R8c3 {[%clk 0:00:11.9]}
34... Qxa4 {[%clk 0:00:24.2]} 35. Nxg3 {[%clk 0:00:12.3]} 35... Qd4 {[%clk
0:00:22.5]} 36. Rc4 {[%clk 0:00:09.3]} 36... Qe3 {[%clk 0:00:22.4]} 37. Ne2
{[%clk 0:00:08.6]} 37... a5 {[%clk 0:00:21.2]} 38. R1c3 {[%clk 0:00:08.7]} 38...
Qd2 {[%clk 0:00:20.4]} 39. Rc2 {[%clk 0:00:07]} 39... Qd1+ {[%clk 0:00:20.1]}
40. Kf2 {[%clk 0:00:07.5]} 40... Bb4 {[%clk 0:00:20.5]} 41. Ng1 {[%clk
0:00:03.7]} 41... Kg7 {[%clk 0:00:19.5]} 42. Nf3 {[%clk 0:00:04]} 42... h5
{[%clk 0:00:19]} 43. Nxe5 {[%clk 0:00:04.2]} 43... Kf6 {[%clk 0:00:14.7]} 44.
Nf3 {[%clk 0:00:04.5]} 44... g5 {[%clk 0:00:14.6]} 45. Rc6+ {[%clk 0:00:04]}
45... Kf7 {[%clk 0:00:15.1]} 46. Rc7+ {[%clk 0:00:02.8]} 46... Kf6 {[%clk
0:00:15]} 47. R2c6+ {[%clk 0:00:02.7]} 47... Bd6 {[%clk 0:00:12.9]} 48. Rxd6#
{[%clk 0:00:03.4]} 1-0

[Event "Early-Titled-Tuesday-Blitz-February-06-2024"]
[Site "Chess.com"]
[Date "2024.02.06"]
[Round "1"]
[White "allvim"]
[Black "YurasovMat-2012"]
[Result "0-1"]
[WhiteElo "2348"]
[BlackElo "2667"]
[TimeControl "180+1"]
[EndTime "8:07:47 PST"]
[Termination "YurasovMat-2012 won by resignation"]

1. e4 {[%clk 0:03:00.9]} 1... e5 {[%clk 0:02:59]} 2. Nf3 {[%clk 0:03:00.6]} 2...
Nf6 {[%clk 0:02:58]} 3. Nxe5 {[%clk 0:02:59.3]} 3... d6 {[%clk 0:02:57.2]} 4.
Nf3 {[%clk 0:02:59.4]} 4... Nxe4 {[%clk 0:02:56.8]} 5. d4 {[%clk 0:02:59.6]}
5... d5 {[%clk 0:02:56.4]} 6. Bd3 {[%clk 0:02:58.1]} 6... Bd6 {[%clk 0:02:56.5]}
7. O-O {[%clk 0:02:57.4]} 7... O-O {[%clk 0:02:56.6]} 8. h3 {[%clk 0:02:57.2]}
8... c5 {[%clk 0:02:49.1]} 9. c4 {[%clk 0:02:54.1]} 9... cxd4 {[%clk 0:02:44.7]}
10. cxd5 {[%clk 0:02:52.3]} 10... Nf6 {[%clk 0:02:44.6]} 11. Nxd4 {[%clk
0:02:51.6]} 11... Nxd5 {[%clk 0:02:41.2]} 12. Nf3 {[%clk 0:02:29.3]} 12... Nf4
{[%clk 0:02:33.5]} 13. Bxf4 {[%clk 0:02:15.1]} 13... Bxf4 {[%clk 0:02:32.7]} 14.
Nc3 {[%clk 0:02:15.6]} 14... Nc6 {[%clk 0:02:31.2]} 15. Nd5 {[%clk 0:02:04.5]}
15... Bb8 {[%clk 0:02:26.3]} 16. Re1 {[%clk 0:02:02.4]} 16... Be6 {[%clk
0:02:23.3]} 17. Ne3 {[%clk 0:01:42.6]} 17... Qf6 {[%clk 0:02:21.4]} 18. Qc2
{[%clk 0:01:36]} 18... g6 {[%clk 0:02:12.1]} 19. Ng4 {[%clk 0:01:35]} 19... Qg7
{[%clk 0:02:06.1]} 20. Bc4 {[%clk 0:01:23.4]} 20... Bf5 {[%clk 0:02:02.2]} 21.
Qe2 {[%clk 0:01:13.7]} 21... Bc7 {[%clk 0:01:53.9]} 22. Rad1 {[%clk 0:01:12.6]}
22... Ba5 {[%clk 0:01:42.2]} 23. Rf1 {[%clk 0:01:01.3]} 23... Rfe8 {[%clk
0:01:41]} 24. Ne3 {[%clk 0:00:43.8]} 24... Qf6 {[%clk 0:01:39.3]} 25. Bd5 {[%clk
0:00:36.2]} 25... Rad8 {[%clk 0:01:23.9]} 26. Qb5 {[%clk 0:00:32.4]} 26... Bb6
{[%clk 0:00:54.1]} 27. Nxf5 {[%clk 0:00:26.2]} 27... gxf5 {[%clk 0:00:53.9]} 28.
Bxc6 {[%clk 0:00:20.7]} 28... bxc6 {[%clk 0:00:53.5]} 29. Qc4 {[%clk 0:00:19.4]}
29... Kh8 {[%clk 0:00:51.9]} 30. Qf4 {[%clk 0:00:13.5]} 30... Rxd1 {[%clk
0:00:36]} 31. Rxd1 {[%clk 0:00:13.5]} 31... Re4 {[%clk 0:00:36.6]} 32. Qb8+
{[%clk 0:00:08.5]} 32... Kg7 {[%clk 0:00:35.7]} 33. Qg3+ {[%clk 0:00:08.5]}
33... Kf8 {[%clk 0:00:21.6]} 34. Qb8+ {[%clk 0:00:07.4]} 34... Re8 {[%clk
0:00:20.4]} 35. Qf4 {[%clk 0:00:05.9]} 35... Qxb2 {[%clk 0:00:19.8]} 36. Ng5
{[%clk 0:00:04.2]} 36... h6 {[%clk 0:00:08.2]} 37. Nh7+ {[%clk 0:00:02.1]} 37...
Kg7 {[%clk 0:00:08.2]} 38. Qxf5 {[%clk 0:00:03]} 38... Re2 {[%clk 0:00:05.7]}
39. Rf1 {[%clk 0:00:03]} 39... Qc2 {[%clk 0:00:04.1]} 40. Qf6+ {[%clk
0:00:01.7]} 40... Kg8 {[%clk 0:00:04.3]} 41. Qxf7+ {[%clk 0:00:02.6]} 41... Kxf7
{[%clk 0:00:04]} 0-1